bitfinex/quotes_ETHUSD_20240703
["timestamp","ask_amount","ask_price","bid_price","bid_amount"]
[1720002963277,6.8585,3301.0,3299.7,3.63]
[1720002963579,0.06705183,3300.9,3299.8,0.06058251]
[1720002963774,0.06705183,3300.9,3299.7,3.63]
[1720002963969,0.06705183,3300.9,3298.7,7.1672]
[1720002964177,0.06705183,3300.9,3298.8,3.63]
[1720002964371,6.8585,3301.0,3298.8,3.63]
[1720002964579,0.75314518,3300.9,3298.5,6.0612]
[1720002964922,1.0,3300.4,3298.5,6.0612]
[1720002965212,1.06059,3300.3,3298.5,6.0612]
[1720002965423,0.06059,3300.2,3298.5,6.0612]
[1720002965990,7.2075,3299.8,3298.5,6.0612]
[1720002966207,0.06059,3299.7,3298.5,6.0612]
[1720002966366,1.0,3299.6,3298.5,6.0612]
[1720002966563,7.2341,3299.3,3298.5,6.0612]
[1720002966807,0.06059,3299.2,3298.5,6.0612]
[1720002966996,1.0,3299.1,3298.5,6.0612]
[1720002967177,0.06059,3299.0,3298.5,6.0612]
[1720002967575,7.2341,3299.3,3298.5,6.0612]
[1720002967576,0.06621344,3298.9,3298.5,6.0612]
[1720002968009,7.2341,3299.3,3298.5,6.0612]
[1720002968296,7.3771,3300.0,3298.6,0.06061511]
[1720002968504,0.06596434,3299.9,3298.5,6.0612]
[1720002969008,0.06596434,3299.9,3298.6,0.06060278]
[1720002969307,0.06596434,3299.9,3298.8,3.63]
[1720002969503,0.06596434,3299.9,3298.9,0.06059478]
[1720002969809,7.4598,3300.7,3298.9,0.06059478]
[1720002969980,7.4598,3300.7,3298.8,3.63]
[1720002970173,0.06527707,3300.6,3298.8,3.63]
[1720002970505,1.0,3300.3,3298.5,6.0612]
[1720002970803,0.06575877,3300.2,3298.5,6.0612]
[1720002971303,0.06575877,3300.1,3298.5,6.0612]
[1720002971619,7.1137,3300.0,3298.5,6.0612]
[1720002971763,7.1137,3299.2,3298.6,0.06061847]
[1720002971966,7.1137,3299.2,3298.5,6.0612]
[1720002972201,0.06562773,3299.1,3298.5,6.0612]
[1720002972807,0.12621773,3299.1,3298.5,6.0612]
[1720002973206,0.12621773,3299.1,3298.3,1.25653563]
[1720002973207,1.0,3298.9,3298.3,1.25653563]
[1720002973414,1.06059,3298.8,3298.3,1.25653563]
[1720002973580,0.72399177,3299.0,3298.3,1.25653563]
[1720002973581,1.0,3298.6,3298.3,1.25653563]
[1720002973775,6.9402,3298.3,3296.0,5.0]
[1720002973975,6.9402,3298.3,3296.4,0.06064255]
[1720002974175,0.06562773,3298.2,3296.4,0.06064255]
[1720002974574,0.06562773,3298.2,3296.5,6.0656]
[1720002974803,6.9402,3299.1,3296.7,6.9144]
[1720002975008,6.9402,3299.1,3297.2,3.63]
[1720002975183,0.06543427,3299.0,3297.3,0.06062013]
[1720002975370,6.9402,3299.1,3297.3,0.06062013]
[1720002975710,6.9402,3299.1,3297.2,3.63]
[1720002977004,6.9402,3299.1,3296.8,6.0665]
[1720002977383,0.06564083,3299.0,3296.8,6.0665]
[1720002977706,6.9402,3299.1,3296.9,0.06062433]
[1720002978002,6.9312,3299.8,3297.2,3.63]
[1720002978203,6.9312,3300.5,3298.3,3.63]
[1720002978409,0.06564083,3299.7,3298.4,0.0605999]
[1720002978609,6.9312,3300.5,3298.4,0.0605999]
[1720002978976,0.06571623,3300.4,3298.4,0.0605999]
[1720002979182,0.06571623,3300.4,3298.3,3.63]
[1720002979380,0.82599785,3300.4,3297.7,3.63]
[1720002979989,0.06571623,3300.4,3297.7,3.63]
[1720002980606,0.06571623,3300.4,3298.3,3.63]
[1720002981109,0.06571623,3300.4,3298.4,0.06059627]
[1720002981276,0.06571623,3300.4,3298.9,3.63]
[1720002981471,6.9766,3301.2,3299.0,0.06058883]
[1720002981695,1.12660445,3301.1,3298.5,6.9473]
[1720002981912,1.0,3300.9,3298.3,3.63]
[1720002982077,0.12660772,3300.8,3298.3,3.63]
[1720002982277,0.12660772,3300.8,3297.8,6.9351]
[1720002982278,6.91,3300.6,3297.8,6.9351]
[1720002982509,0.06059,3300.5,3297.8,6.9351]
[1720002982805,0.06601772,3300.4,3298.3,3.63]
[1720002984002,0.06601772,3300.4,3297.9,6.0636]
[1720002984003,0.06059,3300.3,3297.9,6.0636]
[1720002984377,6.9474,3300.1,3297.9,6.0636]
[1720002984580,0.86192653,3300.0,3297.9,6.0636]
[1720002984814,1.0,3299.8,3297.9,6.0636]
[1720002984992,0.92782302,3300.0,3297.9,6.0636]
[1720002985190,0.06588666,3299.7,3297.9,6.0636]
[1720002985506,0.06588666,3299.6,3298.0,0.06061037]
[1720002985675,6.9474,3300.1,3297.9,6.0636]
[1720002985975,0.06588666,3300.0,3297.9,6.0636]
[1720002987207,0.06588666,3300.0,3298.0,0.06060731]
[1720002987399,0.06588666,3300.0,3297.9,6.0636]
[1720002987911,0.06588666,3300.0,3298.0,0.06060661]
[1720002988221,0.06588666,3300.0,3298.3,3.63]
[1720002988518,0.06588666,3300.0,3298.4,0.06059948]
[1720002989074,0.06588666,3300.0,3298.3,3.63]
[1720002989913,0.06588666,3300.0,3298.4,6.12279687]
[1720002990083,7.3485,3300.8,3298.4,6.12279687]
[1720002990422,0.06590303,3300.7,3298.4,6.0622]
[1720002991081,7.3485,3300.8,3298.4,6.0622]
[1720002991277,7.3485,3300.8,3299.0,3.63]
[1720002992088,7.3485,3300.8,3299.1,0.06058763]
[1720002993235,7.3485,3300.8,3299.0,3.63]
[1720002993701,7.3485,3300.8,3298.4,6.0622]
[1720002993702,0.06059,3300.7,3298.4,9.6922]
[1720002993897,0.06643698,3300.6,3298.4,9.6922]
[1720002994411,0.06643698,3300.6,3298.4,6.0622]
[1720002994594,0.06643698,3300.6,3298.5,0.06059759]
[1720002994923,7.3485,3300.8,3298.5,0.06059759]
[1720002995110,0.06657125,3300.7,3298.5,0.06059759]
[1720002995502,0.06657125,3300.7,3299.1,3.63]
[1720002995701,0.06657125,3300.7,3299.2,0.06058902]
[1720002996695,0.06657125,3300.7,3299.7,3.63]
[1720002996925,0.06657125,3300.7,3299.1,3.63]
[1720002997128,7.3485,3300.8,3299.1,3.63]
[1720002997536,7.3485,3300.8,3299.2,0.06058932]
[1720002997976,7.3485,3300.8,3299.7,3.63]
[1720002998247,1.41601713,3303.0,3299.7,3.63]
[1720002998248,7.1563,3301.6,3299.8,0.06058291]
[1720002998562,7.87193,3301.6,3299.1,3.63]
[1720002998689,0.06650575,3301.5,3299.1,3.63]
[1720002998888,7.1563,3301.6,3299.1,3.63]
[1720002999389,0.06059,3301.5,3299.1,3.63]
[1720002999593,1.0,3301.4,3299.1,3.63]
[1720002999792,7.1566,3301.2,3299.1,3.63]
[1720003000025,0.06059,3301.1,3298.6,7.47]
[1720003000352,0.12709575,3301.1,3298.6,7.47]
[1720003000804,8.3041,3301.0,3298.6,7.47]
[1720003001002,0.06059,3300.9,3298.6,7.47]
[1720003001238,1.0,3300.8,3298.5,3.93231687]
[1720003001394,0.06650575,3300.8,3298.7,0.06059879]
[1720003001594,0.06650575,3300.8,3298.8,0.06059527]
[1720003002498,0.06650575,3300.8,3298.9,0.06059536]
[1720003003199,0.06650575,3300.8,3298.7,1.31836704]
[1720003003404,0.06650575,3300.8,3299.1,1.25777858]
[1720003003640,0.06650575,3300.8,3299.2,0.06058854]
[1720003003837,0.06650575,3300.8,3299.2,1.25777858]
[1720003004614,0.06650575,3300.8,3299.1,1.25777858]
[1720003004936,0.80962532,3300.8,3298.7,1.25777858]
[1720003005241,0.06059,3300.7,3298.6,1.25777858]
[1720003005409,6.8433,3300.6,3298.5,5.19009545]
[1720003005604,0.06059,3300.5,3298.5,5.19009545]
[1720003005814,6.90966493,3300.6,3298.5,5.19009545]
[1720003006049,0.06059,3300.5,3298.5,5.19009545]
[1720003006224,0.12695493,3300.5,3298.5,3.93231687]
[1720003006409,0.12695493,3300.5,3298.5,5.19009545]
[1720003006410,0.92398042,3300.5,3298.5,5.19009545]
[1720003006610,6.9373,3300.0,3298.4,6.0622]
[1720003006833,6.9373,3299.6,3298.4,6.0622]
[1720003007009,0.06059,3299.5,3298.4,6.0622]
[1720003007217,0.12681407,3299.5,3298.4,6.0622]
[1720003007823,1.0,3299.3,3298.4,6.0622]
[1720003008028,0.06059,3299.2,3298.4,6.0622]
[1720003008211,1.0,3299.0,3297.3,0.08583293]
[1720003008412,7.0627,3299.1,3297.4,0.0606261]
[1720003008611,0.06562779,3298.9,3297.4,0.0606261]
[1720003008851,7.0627,3299.1,3297.4,0.0606261]
[1720003008852,0.06543767,3299.0,3297.4,0.0606261]
[1720003009050,7.0627,3299.1,3297.4,0.0606261]
[1720003009219,0.06544095,3298.9,3297.4,0.0606261]
[1720003009542,7.0627,3299.1,3297.3,0.08583293]
[1720003009543,1.06059,3299.0,3297.3,0.08583293]
[1720003009709,0.812329,3298.9,3297.3,0.08583293]
[1720003009914,0.12603095,3298.8,3297.3,0.08583293]
[1720003010444,0.06544095,3298.8,3297.3,0.08583293]
[1720003010648,0.06544095,3298.8,3297.4,0.06063137]
[1720003011049,7.0627,3299.1,3297.4,1.31840995]
[1720003011224,0.06537866,3298.7,3297.5,1.25777858]
[1720003011429,7.0627,3299.1,3297.5,1.25777858]
[1720003011743,0.06537866,3299.0,3297.4,1.25777858]
[1720003011946,0.06537866,3299.0,3297.5,0.0606213]
[1720003012164,7.0627,3299.1,3297.6,1.25777858]
[1720003012324,7.0627,3299.1,3297.8,1.25777858]
[1720003012530,7.4349,3300.3,3297.9,3.69061816]
[1720003012744,0.06537866,3300.2,3297.9,4.94839674]
[1720003012938,0.06537866,3300.2,3298.1,1.25777858]
[1720003013159,7.72614843,3300.3,3298.2,1.31838343]
[1720003013457,7.4349,3300.3,3298.3,1.25777858]
[1720003013883,0.06537866,3300.2,3298.4,0.06060019]
[1720003014161,0.06537866,3300.1,3298.5,1.25777858]
[1720003014323,0.06537866,3300.1,3298.6,0.06060037]
[1720003015152,0.06537866,3300.1,3298.5,1.25777858]
[1720003015361,0.06537866,3300.1,3298.6,0.06060039]
[1720003015887,0.81540653,3300.1,3298.1,1.25777858]
[1720003016200,0.81540653,3300.1,3297.6,1.89897033]
[1720003016201,1.0,3299.7,3297.7,1.55819878]
[1720003016404,0.06059,3299.6,3297.6,1.25777858]
[1720003016604,0.06059,3299.6,3297.4,1.25777858]
[1720003016755,0.06537866,3299.5,3297.3,4.88777858]
[1720003016956,0.06537866,3299.5,3297.4,1.26646012]
[1720003017259,0.06059,3299.6,3297.3,4.89646012]
[1720003017458,0.187634,3299.5,3297.4,2.20477745]
[1720003017755,0.187634,3299.5,3297.1,1.58293989]
[1720003017756,7.02819,3299.4,3297.1,1.26646012]
[1720003017979,7.4822,3299.0,3297.2,2.20487676]
[1720003018179,7.4822,3299.0,3297.0,1.26646012]
[1720003018381,0.06543109,3298.9,3297.1,2.20497085]
[1720003018689,0.9807842,3298.9,3296.8,1.26646012]
[1720003018891,0.9807842,3298.9,3296.5,1.26646012]
[1720003019100,1.0,3298.5,3296.6,2.20531848]
[1720003019297,6.7515,3298.7,3296.7,0.06064146]
[1720003019457,0.06517872,3298.4,3296.8,0.06063617]
[1720003019660,0.06059,3298.6,3296.8,0.06063617]
[1720003020001,6.7515,3298.7,3296.8,0.06063617]
[1720003020291,6.7515,3298.7,3296.7,3.63]
[1720003020292,0.06517872,3298.5,3296.9,3.47158995]
[1720003020590,6.7515,3298.7,3297.2,1.26646012]
[1720003020789,6.7515,3298.7,3296.9,1.26646012]
[1720003021000,6.7515,3298.7,3297.0,2.20506334]
[1720003021157,6.7515,3298.7,3296.8,1.26646012]
[1720003021357,6.7515,3298.7,3296.7,5.21297969]
[1720003021358,0.06059,3298.6,3296.9,2.20514971]
[1720003021596,1.0,3298.5,3296.3,1.56712429]
[1720003021795,0.06059,3298.4,3296.4,2.2054595]
[1720003022019,0.06517872,3298.5,3296.5,0.06064016]
[1720003022292,7.42665,3298.7,3296.5,0.06064016]
[1720003022293,6.7515,3298.7,3296.7,4.89646012]
[1720003022495,6.7515,3298.7,3297.0,1.26646012]
[1720003022496,0.06501149,3298.4,3297.0,1.26646012]
[1720003022700,6.7515,3298.7,3297.2,1.26646012]
[1720003022997,7.2332,3300.3,3297.6,1.26646012]
[1720003023310,0.06059,3300.2,3297.8,1.26646012]
[1720003023461,0.12560149,3300.2,3297.9,2.26606829]
[1720003023665,0.12560149,3300.2,3298.0,2.2054595]
[1720003023978,0.12560149,3300.2,3297.6,1.58326559]
[1720003023979,1.0,3299.9,3297.6,1.26646012]
[1720003024293,0.06059,3299.8,3297.7,2.20459297]
[1720003024500,0.06059,3299.8,3297.5,1.26646012]
[1720003024676,0.06059,3299.8,3297.6,2.20468594]
[1720003024677,0.06501149,3299.7,3297.6,2.20468594]
[1720003024875,7.9829,3299.6,3297.4,0.30746369]
[1720003025084,0.87144015,3299.5,3297.3,3.63]
[1720003025302,0.93645164,3299.5,3297.4,2.20482963]
[1720003025469,0.93645164,3299.5,3297.3,3.9401792]
[1720003027244,1.0,3299.3,3297.3,3.9401792]
[1720003027533,1.0,3298.7,3296.4,1.26582213]
[1720003027693,0.06059,3298.6,3296.5,2.20532227]
[1720003027898,0.06059,3298.6,3296.6,2.20532227]
[1720003028203,0.06059,3298.6,3296.7,2.20531312]
[1720003028412,0.06059,3298.6,3296.3,1.56524134]
[1720003028651,6.8485,3298.8,3296.4,3.47100664]
[1720003028798,6.8485,3298.8,3296.5,3.47100664]
[1720003029003,6.8485,3298.8,3296.7,3.63]
[1720003029198,6.8485,3298.8,3296.8,2.26590189]
[1720003029431,6.8485,3298.8,3296.7,3.63]
[1720003029631,8.53335,3298.8,3296.8,2.20510788]
[1720003029847,8.53335,3298.8,3296.7,3.63]
[1720003029848,0.06059,3298.7,3296.7,3.63]
[1720003030006,0.12581789,3298.7,3296.7,3.63]
[1720003030741,0.06522789,3298.7,3296.8,2.26571957]
[1720003030949,0.06522789,3298.7,3297.4,3.63]
[1720003031152,6.8485,3298.8,3297.5,0.06062235]
[1720003032254,6.8485,3298.8,3297.4,3.63]
[1720003032764,6.8485,3298.8,3297.5,0.0606224]
[1720003033067,0.61380613,3301.2,3297.5,0.0606224]
[1720003033068,7.2102,3299.5,3298.0,3.63]
[1720003033226,7.2102,3299.5,3298.1,2.20429785]
[1720003033455,7.2102,3299.5,3298.1,3.4700312]
[1720003033755,7.2102,3299.5,3298.2,2.20429785]
[1720003034081,7.2102,3299.5,3298.0,3.63]
[1720003034302,7.2102,3299.5,3298.1,2.20419051]
[1720003034454,7.2102,3299.5,3298.1,3.46992386]
[1720003034659,7.2102,3299.5,3298.2,2.20419051]
[1720003035176,7.2102,3299.5,3298.0,3.63]
[1720003035376,7.2102,3299.5,3298.1,2.2041531]
[1720003035808,7.93122,3299.5,3297.8,1.26573335]
[1720003035939,7.2102,3299.5,3297.9,0.06061839]
[1720003036306,7.2102,3299.5,3298.0,2.20430257]
[1720003036440,7.2102,3299.5,3298.3,3.63]
[1720003036639,7.3798,3300.8,3298.4,0.06060834]
[1720003036839,7.3798,3300.8,3298.9,3.63]
[1720003037093,0.06374961,3300.7,3299.0,0.06058826]
[1720003037284,0.06374961,3300.7,3298.9,3.63]
[1720003037580,0.12433961,3300.7,3298.4,1.26573335]
[1720003037738,0.12433961,3300.7,3298.5,2.2039497]
[1720003037935,0.06059,3300.7,3298.5,2.2039497]
[1720003038182,0.06059,3300.7,3298.5,3.46968305]
[1720003038183,0.804629,3300.7,3298.5,3.46968305]
[1720003038400,7.3798,3300.8,3298.6,2.2039497]
[1720003038556,7.3798,3300.8,3298.9,3.63]
[1720003038746,7.3798,3300.8,3298.7,0.06059642]
[1720003038747,7.3798,3300.8,3299.5,3.63]
[1720003038948,7.3798,3300.8,3299.6,0.0605857]
[1720003039772,6.8719,3301.5,3300.1,3.63]
[1720003040089,6.8719,3301.5,3300.2,2.26347122]
[1720003040301,6.8719,3301.5,3300.3,0.06057441]
[1720003040800,0.06202551,3301.4,3300.3,0.06057441]
[1720003041036,0.06202551,3301.4,3299.9,1.26573335]
[1720003041335,0.06202551,3301.4,3299.5,4.89573335]
[1720003041557,0.69339255,3301.4,3299.5,3.63]
[1720003041895,0.75398255,3301.4,3299.4,0.3050304]
[1720003042099,1.06255381,3301.3,3298.9,4.89573335]
[1720003042325,6.7847,3301.1,3298.9,4.89573335]
[1720003042511,0.74708281,3301.0,3299.0,0.06059595]
[1720003042924,0.80767281,3301.0,3298.9,3.92887248]
[1720003043405,0.06255381,3301.0,3299.0,0.06059092]
[1720003043626,0.06255381,3301.0,3299.0,1.32632427]
[1720003043838,6.7847,3301.1,3299.6,3.63]
[1720003044160,6.7847,3301.1,3299.7,3.52931609]
[1720003044440,6.7847,3301.1,3299.9,1.26573335]
[1720003044664,6.7847,3301.1,3300.0,0.06057829]
[1720003045327,6.7847,3301.1,3300.1,0.06057836]
[1720003045653,6.7847,3301.1,3299.8,1.26281879]
[1720003045952,6.7847,3301.1,3299.6,3.63]
[1720003046128,6.7847,3301.1,3299.3,1.26281879]
[1720003046524,6.7847,3301.1,3299.7,3.63]
[1720003047373,6.7847,3301.1,3299.8,0.06058068]
[1720003047537,6.7847,3301.1,3299.7,3.63]
[1720003048237,6.7847,3301.1,3299.8,0.06057924]
[1720003049359,6.7847,3301.1,3299.7,3.63]
[1720003049876,6.7847,3301.1,3299.3,0.30896294]
[1720003050020,7.46317,3301.1,3299.3,0.30896294]
[1720003050221,0.06059,3301.0,3299.1,3.63]
[1720003050425,0.12319957,3301.0,3298.8,2.92268228]
[1720003050619,0.06059,3301.0,3298.8,2.92268228]
[1720003050875,0.06260957,3300.9,3298.8,2.92268228]
[1720003051180,1.0,3300.7,3298.8,2.92268228]
[1720003051331,0.06059,3300.6,3298.7,0.30879928]
[1720003051529,0.06059,3300.6,3298.5,3.63]
[1720003051843,0.06260957,3300.5,3298.5,3.63]
[1720003052037,7.0323,3300.4,3298.5,3.63]
[1720003052634,0.06260957,3300.3,3298.5,3.63]
[1720003053135,0.06260957,3300.3,3298.6,0.06060184]
[1720003053429,0.06260957,3300.3,3298.5,3.63]
[1720003053763,0.06260957,3300.3,3299.1,3.63]
[1720003054047,6.9086,3301.2,3299.8,3.63]
[1720003054360,6.9086,3301.2,3299.9,0.06058021]
[1720003054560,0.06226507,3301.1,3299.9,0.06058021]
[1720003055682,0.06226507,3301.1,3299.8,3.63]
[1720003055979,0.06226507,3301.1,3299.9,0.06058037]
[1720003056274,0.06226507,3301.1,3300.0,0.06057779]
[1720003056583,0.06226507,3301.1,3300.4,3.63]
[1720003056766,6.9149,3301.8,3300.4,3.63]
[1720003057078,6.9149,3301.8,3299.8,1.26167514]
[1720003057079,0.06226507,3301.7,3299.8,5.19787697]
[1720003057262,0.06226507,3301.7,3299.8,3.93620183]
[1720003057982,0.12285507,3301.7,3299.8,3.93620183]
[1720003058641,0.06226507,3301.7,3299.9,0.06058267]
[1720003059138,0.06226507,3301.7,3299.8,3.93620183]
[1720003059760,0.06226507,3301.7,3299.9,0.06057594]
[1720003060788,0.06226507,3301.7,3299.8,3.93620183]
[1720003060987,0.82057158,3301.7,3299.8,3.93620183]
[1720003061376,0.82057158,3301.7,3299.8,0.30620183]
[1720003061377,7.0176,3301.6,3299.8,0.30620183]
[1720003061673,7.0176,3301.6,3299.2,3.63]
[1720003061674,0.12336353,3301.5,3299.2,3.63]
[1720003061875,6.7615,3301.4,3299.3,0.0605803]
[1720003062274,0.0626653,3301.3,3299.8,3.63]
[1720003062478,0.0626653,3301.3,3299.9,0.0605795]
[1720003063195,0.0626653,3301.3,3300.5,3.63]
[1720003065098,6.7615,3301.4,3300.5,3.63]
[1720003065296,6.7615,3301.4,3299.9,3.63]
[1720003066607,6.7615,3301.4,3299.9,3.94075769]
[1720003066762,0.06271778,3301.3,3299.9,3.94075769]
[1720003066959,0.06271778,3301.3,3299.9,0.31075769]
[1720003067195,0.06271778,3301.3,3299.4,1.26167514]
[1720003067395,0.12330778,3301.3,3299.3,4.89167514]
[1720003067581,0.12330778,3301.3,3299.3,3.63]
[1720003067582,0.74301178,3301.3,3299.3,3.63]
[1720003067774,7.38231778,3301.2,3299.3,3.63]
[1720003067980,7.3196,3301.0,3299.3,3.63]
[1720003068187,0.06059,3300.9,3299.3,3.63]
[1720003068497,0.06271778,3300.8,3299.3,3.63]
[1720003068864,0.06271778,3300.8,3299.3,3.93387121]
[1720003069265,0.06271778,3300.8,3299.4,0.06058907]
[1720003069583,7.3196,3301.0,3299.3,3.93387121]
[1720003069788,0.79255,3300.9,3299.3,0.30387121]
[1720003070118,0.06047572,3300.8,3299.0,4.18435742]
[1720003070412,0.06047572,3300.8,3299.0,2.92268228]
[1720003070569,7.3178,3300.7,3299.1,0.06060056]
[1720003070926,0.12077747,3300.6,3299.0,0.3021038]
[1720003071261,0.06059,3300.6,3298.7,3.93338791]
[1720003071462,0.898429,3300.6,3298.7,3.93338791]
[1720003071999,0.898429,3300.6,3299.1,3.604]
[1720003072508,0.06018747,3300.5,3299.1,3.604]
[1720003073594,7.2656,3300.3,3299.1,3.604]
[1720003073803,1.837839,3300.6,3298.4,1.57228802]
[1720003073804,6.7734,3300.1,3298.4,1.57228802]
[1720003074107,0.06059,3300.0,3298.2,3.629]
[1720003074272,0.12035663,3300.0,3298.2,3.9305588]
[1720003074675,6.30034515,3300.1,3298.9,1.26167514]
[1720003074886,0.0558486,3299.9,3299.1,1.26167514]
[1720003075093,5.91120853,3300.1,3299.2,1.26167514]
[1720003075277,5.91120853,3300.1,3299.3,1.32227284]
[1720003076020,1.0,3302.0,3299.9,3.629]
[1720003076175,1.0,3302.0,3300.0,0.06057938]
[1720003076508,1.0,3301.8,3300.0,1.26167514]
[1720003076709,1.0,3301.8,3299.9,1.26167514]
[1720003077012,1.0,3302.5,3300.0,1.32225842]
[1720003077309,0.0557039,3302.4,3300.4,1.26167514]
[1720003077612,0.0557039,3302.4,3300.5,1.26167514]
[1720003077814,7.3785,3302.3,3300.5,1.26167514]
[1720003078014,0.74342039,3302.2,3300.4,1.26167514]
[1720003078312,0.05612473,3302.1,3300.6,1.26167514]
[1720003078920,0.05612473,3302.1,3300.7,1.26167514]
[1720003079078,0.05612473,3302.1,3300.6,1.26167514]
[1720003079280,0.05612473,3302.1,3300.5,1.26167514]
[1720003079891,1.0,3301.9,3300.4,1.26167514]
[1720003080225,0.87392924,3302.1,3300.3,1.26167514]
[1720003080226,1.0,3301.6,3300.3,1.26167514]
[1720003080435,7.1446,3301.5,3299.8,1.26167514]
[1720003080715,7.20086273,3301.5,3300.2,1.26167514]
[1720003080923,7.20086273,3301.5,3300.5,1.26167514]
[1720003081118,7.20086273,3301.5,3299.9,3.629]
[1720003081119,7.20086273,3301.5,3300.6,0.06058357]
[1720003081416,7.1446,3301.5,3300.6,0.06058357]
[1720003081582,0.05626273,3301.4,3300.6,0.06058357]
[1720003082708,0.05626273,3301.4,3300.7,1.26758613]
[1720003082911,7.1446,3301.5,3300.7,1.26758613]
[1720003083229,7.1446,3301.5,3300.8,1.26758613]
[1720003083397,7.1446,3301.5,3300.7,1.26758613]
[1720003084293,7.1446,3301.5,3300.8,3.47028591]
[1720003084493,7.1446,3301.5,3300.8,1.26758613]
[1720003084689,7.1446,3301.5,3300.5,3.629]
[1720003084886,7.1446,3301.5,3300.6,3.47069838]
[1720003085120,7.1446,3301.5,3299.9,3.93424709]
[1720003085294,7.1446,3301.5,3300.2,1.26808989]
[1720003085488,0.05675912,3301.4,3300.2,1.26808989]
[1720003085688,7.1446,3301.5,3300.3,3.47117295]
[1720003085948,7.1446,3301.5,3300.3,1.26808989]
[1720003086149,7.1446,3301.5,3300.5,1.26808989]
[1720003086426,7.1446,3301.5,3300.7,1.26808989]
[1720003087085,0.05675912,3301.4,3300.8,2.20274394]
[1720003087297,0.05675912,3301.4,3300.7,1.26808989]
[1720003088790,0.05675912,3301.4,3300.6,1.26808989]
[1720003090650,0.77689503,3301.4,3300.6,1.26808989]
[1720003091194,1.0,3301.3,3300.6,1.26808989]
[1720003091497,7.49270656,3301.2,3300.6,1.26808989]
[1720003091739,1.0,3301.0,3300.6,1.26808989]
[1720003092098,0.05654222,3300.9,3299.3,3.629]
[1720003092316,0.05654222,3300.9,3299.4,2.20377686]
[1720003092791,0.05654222,3300.9,3299.5,0.06059761]
[1720003092996,7.436,3301.2,3299.6,2.20377686]
[1720003093195,7.436,3301.2,3299.9,3.629]
[1720003093421,7.436,3301.2,3300.0,2.2643581]
[1720003093625,7.436,3301.2,3300.1,2.20377686]
[1720003093822,7.436,3301.2,3300.6,3.601]
[1720003094030,7.436,3301.2,3300.7,0.06058063]
[1720003094328,7.436,3301.2,3300.6,3.601]
[1720003094500,7.4047,3302.4,3300.7,0.06058065]
[1720003094694,0.05647979,3301.1,3300.8,0.06057497]
[1720003094893,7.4047,3302.4,3300.8,0.06057497]
[1720003095094,0.05647979,3301.0,3300.9,2.26329136]
[1720003095298,7.4047,3302.4,3300.9,13.88888736]
[1720003095497,7.4047,3302.4,3301.4,3.601]
[1720003095737,0.05484622,3302.3,3300.9,3.601]
[1720003095898,1.0,3302.2,3301.0,2.20264968]
[1720003096103,1.05488237,3302.2,3300.9,3.601]
[1720003096336,7.4138,3302.1,3300.4,3.601]
[1720003096534,1.0,3301.9,3300.5,2.20295733]
[1720003096828,7.4138,3301.6,3300.6,0.06058695]
[1720003097017,7.4138,3301.6,3300.4,3.601]
[1720003097228,7.4138,3301.6,3300.5,0.06058026]
[1720003097429,7.4138,3301.6,3300.5,2.26363772]
[1720003097430,0.05504663,3301.5,3300.5,2.26363772]
[1720003097635,0.05504663,3301.5,3300.4,3.601]
[1720003098017,1.05504663,3301.5,3299.9,3.601]
[1720003098218,1.90193129,3301.5,3300.0,2.20325342]
[1720003098627,1.0,3301.2,3300.0,2.20325342]
[1720003098953,7.29723633,3301.1,3300.1,0.06059499]
[1720003099444,7.29723633,3301.1,3299.9,3.601]
[1720003099647,7.29723633,3301.1,3300.0,2.20345923]
[1720003099950,7.29723633,3301.1,3300.1,0.06059505]
[1720003100348,7.29723633,3301.1,3300.4,3.601]
[1720003100510,7.079,3302.2,3300.4,3.601]
[1720003100714,1.80300674,3302.1,3300.5,2.26371678]
[1720003100983,1.85740927,3302.1,3300.9,3.601]
[1720003101252,1.85740927,3302.1,3301.0,0.0605773]
[1720003101916,1.85740927,3302.1,3300.9,3.601]
[1720003101917,0.05440253,3302.1,3300.9,3.601]
[1720003102344,0.95114584,3302.9,3301.0,0.06057724]
[1720003102547,0.95114584,3304.1,3302.8,3.601]
[1720003102727,0.116021,3304.3,3303.4,3.601]
[1720003102915,0.116021,3304.3,3303.5,0.06052542]
[1720003103337,6.7626,3304.4,3303.6,0.06052692]
[1720003103621,6.7626,3304.4,3303.4,3.601]
[1720003104150,6.7626,3304.4,3303.5,0.06052471]
[1720003104358,6.7626,3304.4,3303.4,3.601]
[1720003105663,6.7626,3304.4,3303.5,0.06052903]
[1720003110158,0.05004605,3304.3,3303.5,0.06052903]
[1720003110659,0.05004605,3304.3,3303.0,0.29951467]
[1720003110858,0.05004605,3304.3,3302.9,3.601]
[1720003111356,0.05004605,3304.3,3303.4,3.601]
[1720003111565,0.05004605,3304.3,3303.5,0.06052789]
[1720003111888,6.7626,3304.4,3303.5,0.06052789]
[1720003111889,0.05003291,3304.2,3303.5,0.06052789]
[1720003112163,0.05003291,3304.2,3303.4,3.601]
[1720003112364,6.7626,3304.4,3303.4,3.601]
[1720003112529,6.7626,3304.4,3303.5,0.06053121]
[1720003112733,0.05104108,3304.3,3303.5,0.06053121]
[1720003114065,0.05102798,3304.2,3303.5,0.06053121]
[1720003114232,6.7626,3304.4,3303.5,0.06053121]
[1720003114436,0.05102798,3304.3,3303.5,0.06053121]
[1720003117166,0.05102798,3304.3,3303.9,3.601]
[1720003117373,0.05102798,3304.3,3304.0,0.06052008]
[1720003117534,7.113,3305.0,3304.0,0.06052008]
[1720003117734,0.04938098,3304.2,3304.0,0.06052008]
[1720003117934,7.063,3305.0,3304.0,0.06052008]
[1720003118178,1.0,3305.7,3304.0,0.06052008]
[1720003118332,0.04938098,3304.9,3304.0,0.06052008]
[1720003118535,1.0,3305.7,3304.0,0.06052008]
[1720003119139,1.0,3305.3,3303.4,1.25816071]
[1720003119372,1.0,3305.6,3303.5,0.06052183]
[1720003119586,1.0,3305.6,3304.0,3.601]
[1720003119757,1.0,3305.6,3304.1,0.06051476]
[1720003120675,1.0,3305.6,3304.0,3.601]
[1720003120849,1.0,3305.6,3303.5,1.57004203]
[1720003120850,1.0,3305.2,3303.5,3.601]